[Event "2nd Late Dr Abul K C Chess-ch A 2022"]
[Site "Dhaka"]
[Date "2022.07.04"]
[Round "3.2"]
[White "Subrota, Biswas"]
[Black "Manon, Reja Neer"]
[Result "1-0"]
[ECO "E18"]
[WhiteElo "2253"]
[BlackElo "2089"]
[Annotator "TA"]
[PlyCount "53"]
[EventDate "2022.07.03"]
[EventCountry "BAN"]
[SourceTitle "playchess.com"]
[Source "ChessBase"]
[SourceQuality "1"]
[TimeControl "5400+30"]

{[%evp 16,53,24,33,43,16,85,85,67,39,62,33,37,33,33,31,27,-35,-25,-23,0,0,0,0,0,0,47,57,172,166,327,167,502,203,577,574,572,570,546,528]} 1. d4 {[%emt 0:00:38]} Nf6 {[%emt 0:00:22]} 2. c4 {[%emt 0:00:08]} e6 {[%emt 0:01:53]} 3. Nf3 {[%emt 0:00:54]} d5 {[%emt 0:00:25]} 4. g3 {[%emt 0:00:02]} Be7 {[%emt 0:00:09]} 5. Bg2 {[%emt 0:00:02]} O-O {[%emt 0:00:09]} 6. O-O {[%emt 0:00:02]} b6 {[%emt 0:03:09]} 7. cxd5 {[%emt 0:00:09]} exd5 {[%emt 0:00:03]} 8. Nc3 {[%emt 0:00:36]} Bb7 {[%emt 0:00:29]} 9. Bf4 {[%emt 0:10:19]} Bd6 {[%emt 0:12:44] E18: Queen's Indian: Old Main Line (4 g3 Bb7 5 Bg2 Be7 6 0-0 0-0 7 Nc3).} 10. Bg5 {[%emt 0:00:49]} h6 {[%emt 0:21:52]} (10... Nbd7 $11) 11. Bxf6 $16 {[%emt 0:00:03]} Qxf6 {[%emt 0:00:01] White is better.} 12. Nh4 {[%emt 0:02:40]} g5 {[%emt 0:07:17]} 13. Nf3 {[%emt 0:02:19]} ({Not} 13. Bxd5 Bxd5 14. Nxd5 Qe6 $17) (13. e4 $5 {[%cal Re4e5]} Bb4 14. Qg4 $14 (14. e5 Qe6 $11)) 13... Nd7 {[%emt 0:07:56]} 14. Qb3 {[%emt 0:04:57]} Qf5 {[%emt 0:08:09] [#]} 15. Nd2 $146 {[%emt 0:02:45][%cal Rc3d5]} ({Predecessor:} 15. Ne1 Nf6 16. Nc2 Qe6 17. Rac1 Rfe8 18. Ne3 c6 19. Qc2 Bc8 20. a3 Bd7 21. b4 b5 22. Qb3 {0-1 (74) Bielmeier,L (2095)-Heyne,M (2045) Bayern 2000}) 15... Nf6 {[%emt 0:01:18]} 16. f3 {[%emt 0:05:27]} (16. Rfe1 $11) 16... c5 $15 {[%emt 0:02:03]} 17. e4 {[%emt 0:02:03]} Qd7 {[%emt 0:08:35]} 18. Nxd5 {[%emt 0:02:02]} Nxd5 {[%emt 0:01:06]} 19. exd5 {[%emt 0:01:09]} cxd4 {[%emt 0:00:01]} 20. f4 {[%emt 0:00:44]} Rad8 {[%emt 0:05:09]} (20... Rae8 $11 {feels stronger.}) 21. fxg5 $14 {[%emt 0:01:26]} hxg5 {[%emt 0:00:30]} (21... Be7 $14) 22. Ne4 $18 {[%emt 0:00:16] Black must now prevent Nf6+.} Qe7 {[%emt 0:07:18] [#]} (22... f5) 23. Rae1 {[%emt 0:04:54]} (23. Nf6+ $142 $1 Kh8 24. Rae1) 23... Kg7 $2 {[%emt 0:03:16]} (23... f5 {is a better chance.} 24. Nxd6 Qxd6) 24. Nc5 {[%emt 0:04:13]} Qc7 {[%emt 0:00:52] [#]} (24... Qxe1 25. Rxe1 Bxc5) 25. Qf3 $1 {[%emt 0:00:06] Intending Qf6+ and mate. White is clearly winning.} Be7 {[%emt 0:03:03] Inhibits Qf6+.} 26. Nxb7 {[%emt 0:10:34]} Qxb7 {[%emt 0:00:05]} 27. Qf5 {[%emt 0:00:53] Weighted Error Value: White=0.30/Black=0.75} 1-0

[Event "2nd Late Dr Abul K C Chess-ch A 2022"]
[Site "Dhaka"]
[Date "2022.07.04"]
[Round "3.3"]
[White "Rahman, Ziaur"]
[Black "Islam, Khandaker Aminul"]
[Result "1-0"]
[ECO "A05"]
[WhiteElo "2424"]
[BlackElo "2182"]
[Annotator "TA"]
[PlyCount "60"]
[EventDate "2022.07.03"]
[EventCountry "BAN"]
[SourceTitle "playchess.com"]
[Source "ChessBase"]
[SourceQuality "1"]
[TimeControl "5400+30"]

{[%evp 9,60,21,20,20,22,19,36,19,29,41,30,24,60,60,70,76,80,73,72,61,68,32,76,67,86,56,107,83,115,131,225,197,192,187,246,233,484,489,487,488,460,415,396,316,530,548,531,521,620,541,968,960,1349]} 1. Nf3 {[%emt 0:00:23]} Nf6 {[%emt 0:00:24]} 2. b3 {[%emt 0:02:07]} c5 {[%emt 0:00:10]} 3. Bb2 {[%emt 0:00:23]} e6 {[%emt 0:00:02]} 4. e3 {[%emt 0:01:03]} Be7 {[%emt 0:02:02]} 5. d4 {[%emt 0:00:31]} cxd4 {[%emt 0:00:08]} 6. exd4 {[%emt 0:00:26] A05: Réti Opening: 1 Nf3 Nf6.} d5 {[%emt 0:00:23]} 7. Bd3 {[%emt 0:00:25]} Qa5+ {[%emt 0:00:22]} 8. c3 {[%emt 0:01:00] White is slightly better.} Nc6 {[%emt 0:03:08]} 9. O-O {[%emt 0:00:24]} O-O {[%emt 0:01:22]} 10. Nbd2 {[%emt 0:00:32] [#]} Bd7 $146 {[%emt 0:00:15]} ({Predecessor:} 10... g6 11. Re1 Bd7 12. Ne5 Nxe5 13. dxe5 Nh5 14. g3 Rac8 15. Qe2 b5 16. Nf3 a6 {0-1 (40) Filatov,L (2293)-Short,N (2683) ICC INT 2000}) 11. Ne5 {[%emt 0:02:05]} Be8 {[%emt 0:01:10]} 12. f4 {[%emt 0:00:55]} Qb6 {[%emt 0:02:41]} 13. Kh1 {[%emt 0:01:02] White is more active.} Nd7 {[%emt 0:00:38]} 14. Ndf3 {[%emt 0:02:25]} f5 {[%emt 0:00:58]} 15. Qe2 {[%emt 0:03:49]} Ncxe5 {[%emt 0:03:41]} 16. fxe5 {[%emt 0:00:55] Black is on the road to losing.} Nb8 {[%emt 0:02:31]} 17. Bc1 {[%emt 0:09:02]} Nc6 {[%emt 0:00:22]} (17... Bh5 $14) 18. Ng5 {[%emt 0:01:27][%cal Bf3g5,Bg5h3,Bh3f4,Bf4d5,Bd5e3,Be3f5][%mdl 32]} Nd8 {[%emt 0:00:06]} 19. Nh3 {[%emt 0:00:55]} a5 {[%emt 0:13:47]} (19... a6 $16 20. Bd2 Bb5) 20. Bd2 {[%emt 0:03:14]} a4 {[%emt 0:00:19]} 21. b4 {[%emt 0:00:16]} Rc8 {[%emt 0:07:27] [#]} (21... h5 $142 22. Rac1 Rb8) 22. g4 $1 $18 {[%emt 0:01:31]} fxg4 $2 {[%emt 0:00:08]} (22... f4 {was worth a try.} 23. Nxf4 (23. Rxf4 Rf7 $18) 23... Rf7) 23. Qxg4 {[%emt 0:00:51]} g6 {[%emt 0:02:37]} 24. Nf4 {[%emt 0:02:19]} Rf5 {[%emt 0:00:37]} 25. Bxf5 {[%emt 0:05:11]} exf5 {[%emt 0:00:06]} 26. Qg2 {[%emt 0:00:46]} Qb5 $2 {[%emt 0:07:54]} (26... Ne6 27. Nxd5 Qd8 28. Nxe7+ Qxe7) 27. Nxd5 {[%emt 0:04:11] White is clearly winning.} Bh4 {[%emt 0:00:03] [#] And now ...Bc6 would win.} 28. Ne3 {[%emt 0:00:44]} Ne6 {[%emt 0:03:26]} 29. d5 {[%emt 0:00:46]} Qd3 {[%emt 0:00:26]} 30. Nxf5 {[%emt 0:01:23]} ({Not} 30. dxe6 Bc6 31. Rf3 f4 $16) 30... Rc4 {[%emt 0:00:02] Weighted Error Value: White=0.15 (very precise) /Black=0.39} 1-0

[Event "2nd Late Dr Abul K C Chess-ch A 2022"]
[Site "Dhaka"]
[Date "2022.07.04"]
[Round "3.4"]
[White "Zia, Tahsin Tajwar"]
[Black "Nayem, Haque"]
[Result "1-0"]
[ECO "E20"]
[WhiteElo "2307"]
[BlackElo "2184"]
[Annotator "TA"]
[PlyCount "105"]
[EventDate "2022.07.03"]
[EventCountry "BAN"]
[SourceTitle "playchess.com"]
[Source "ChessBase"]
[SourceQuality "1"]
[TimeControl "5400+30"]

{[%evp 13,105,-2,-10,-23,-4,-16,0,-14,-19,-15,-16,-8,0,-26,-37,-60,0,-14,38,-55,-47,-55,-50,-87,0,-127,39,27,133,145,111,122,168,163,170,165,176,164,231,215,205,162,163,139,139,135,140,135,135,135,149,149,249,242,333,312,353,350,341,347,438,434,427,385,600,593,579,566,631,607,741,721,700,678,778,686,812,810,795,790,1000,987,992,987,29982,29983,29983,29984,29984,29985,29985,29986,29988,29989]} 1. d4 {[%emt 0:00:52]} Nf6 {[%emt 0:00:02]} 2. c4 {[%emt 0:00:05]} e6 {[%emt 0:00:10]} 3. Nf3 {[%emt 0:00:16]} d5 {[%emt 0:00:06]} 4. g3 {[%emt 0:00:08]} Bb4+ {[%emt 0:00:30]} 5. Nc3 {[%emt 0:00:34]} O-O {[%emt 0:01:31]} 6. Bg2 {[%emt 0:00:10]} dxc4 {[%emt 0:00:22]} 7. O-O {[%emt 0:00:12]} Nc6 {[%emt 0:00:02]} 8. Qa4 {[%emt 0:00:14] E20: Nimzo-Indian: 4 g3 and 4 f3.} Nd5 {[%emt 0:12:28]} 9. Qc2 {[%emt 0:00:08]} Be7 {[%emt 0:01:37]} 10. Rd1 $1 {[%emt 0:00:53] The position is equal.} Ncb4 {[%emt 0:00:36]} 11. Qb1 {[%emt 0:02:41]} Nxc3 {[%emt 0:09:37]} 12. bxc3 {[%emt 0:00:06]} Nd5 $36 {[%emt 0:00:10][%mdl 2048] [#] Black fights for an advantage.} 13. Bd2 $146 {[%emt 0:00:35]} ({Predecessor:} 13. Qc2 Nb6 14. a4 a5 15. Re1 c5 16. Rd1 Qe8 17. Bg5 cxd4 18. Bxe7 Qxe7 19. cxd4 Qc7 20. Ng5 g6 21. Ne4 Rd8 22. Nc3 Bd7 23. h4 Be8 {½-½ (23) Salzmann,S (2380)-Yeo,G (2444) ICCF email 2019}) 13... Nb6 {[%emt 0:01:54]} 14. h4 {[%emt 0:00:32]} h6 {[%emt 0:00:41]} (14... f6 $15) 15. Ne5 {[%emt 0:00:45]} Rb8 {[%emt 0:01:42]} (15... Ba3 $11) 16. e4 {[%emt 0:02:10]} (16. a4 $1 $14) 16... Bd7 $15 {[%emt 0:00:34]} 17. Qc1 {[%emt 0:09:21]} Be8 {[%emt 0:15:34]} 18. Bh3 {[%emt 0:07:52]} f5 {[%emt 0:05:37]} ({Black should try} 18... Bd6 $17) 19. d5 {[%emt 0:04:23]} (19. a4 $11) 19... Qd6 $2 {[%emt 0:00:01]} ({Black should play} 19... Bd6 $17 20. f4 exd5 21. exf5 Bd7 22. Nxd7 Nxd7) 20. Bf4 $14 {[%emt 0:00:42][%cal Oe5c6] Black must now prevent Nc6!} Qa3 {[%emt 0:00:20] White stays focused until the end.} (20... fxe4 21. Bxe6+ (21. Ng6 Rxf4 22. Nxe7+ Qxe7 $15) 21... Kh7 22. Qc2 $16) (20... exd5 $11 {keeps the balance.} 21. Nxc4 Qc6 22. Nxb6 axb6 23. exd5 Qc5) 21. Qxa3 $16 {[%emt 0:16:48]} Bxa3 {[%emt 0:00:02]} 22. dxe6 {[%emt 0:03:03][%cal Bd5e6,Be6d7][%mdl 32] Nd7 is the strong threat. White is more active.} fxe4 {[%emt 0:00:18]} (22... Ba4 $16) 23. Nd7 $18 {[%emt 0:03:52]} Bxd7 {[%emt 0:00:08]} 24. exd7 {[%emt 0:00:07]} Rxf4 {[%emt 0:00:04]} 25. gxf4 {[%emt 0:04:12]} Bd6 {[%emt 0:00:02]} (25... Rd8 $142 26. Rd4 Bc5) 26. Rd4 {[%emt 0:04:17]} Rd8 {[%emt 0:00:20]} 27. Rad1 {[%emt 0:00:40]} ({But not} 27. Rxe4 $6 Nxd7 28. Be6+ (28. Rxc4 Nc5 $16) 28... Kh8 $16) 27... Kf8 {[%emt 0:00:25]} 28. Rxe4 {[%emt 0:01:38]} Nxd7 {[%emt 0:00:14]} 29. Rxc4 {[%emt 0:02:12]} Nf6 {[%emt 0:01:49]} 30. Kg2 {[%emt 0:00:45]} Re8 {[%emt 0:02:10]} 31. Kf3 {[%emt 0:00:26] Against Re2} Re7 {[%emt 0:01:06]} 32. Bf5 {[%emt 0:01:03]} Kf7 {[%emt 0:04:27] [#]} (32... b6 $16 33. Rcd4 Kg8) 33. Ra4 $1 {[%emt 0:04:47]} g6 {[%emt 0:06:29]} 34. Bc2 {[%emt 0:02:47]} ({Not} 34. Rxa7 gxf5 35. Rxb7 Ne4 $11) ({Don't do} 34. Bc8 $6 b6 35. Rxa7 Ne4 $18) 34... a6 {[%emt 0:05:17]} 35. Rg1 {[%emt 0:01:12]} Nd7 {[%emt 0:07:04]} 36. Rxg6 {[%emt 0:07:33]} Re1 {[%emt 0:00:36]} 37. h5 {[%emt 0:01:49]} Nc5 {[%emt 0:04:02]} 38. Rd4 {[%emt 0:02:00]} Rh1 {[%emt 0:03:37]} (38... Re6 $142 39. f5 Rf6) 39. Rd5 {[%emt 0:02:40]} Rh3+ {[%emt 0:02:23]} 40. Rg3 {[%emt 0:00:16]} Rh1 {[%emt 0:03:41]} 41. Rf5+ {[%emt 0:02:31]} Ke7 {[%emt 0:00:13]} 42. Rg7+ {[%emt 0:00:39]} Ke6 {[%emt 0:02:18]} 43. Rg6+ {[%emt 0:03:09]} Ke7 {[%emt 0:00:03]} 44. Bb3 {[%emt 0:02:14] White threatens Rf7+ and mate.} Nxb3 {[%emt 0:03:39]} 45. axb3 {[%emt 0:00:01][%mdl 4096] Endgame KRR-KRB} Rh3+ {[%emt 0:02:24]} 46. Kg2 {[%emt 0:00:01]} Rxc3 {[%emt 0:00:23]} 47. Rxh6 {[%emt 0:00:02] aiming for Rhf6.} Rxb3 {[%emt 0:00:23]} 48. Rhf6 {[%emt 0:00:49] Threatening mate with h6.} Ba3 {[%emt 0:05:07]} 49. h6 {[%emt 0:00:39] White mates.} Bb2 {[%emt 0:00:08]} 50. h7 {[%emt 0:00:20]} Bxf6 {[%emt 0:00:06] [#]} 51. Rxf6 $1 {[%emt 0:00:03][%mdl 576] Remove Defender, Promotion} Kxf6 {[%emt 0:00:33]} 52. h8=Q+ {[%emt 0:00:08]} Ke7 {[%emt 0:00:23]} 53. Qe5+ {[%emt 0:00:16] Weighted Error Value: White=0.19 (very precise) /Black=0.41} 1-0

[Event "2nd Late Dr Abul K C Chess-ch A 2022"]
[Site "Dhaka"]
[Date "2022.07.05"]
[Round "4.4"]
[White "Mehdi Hasan Parag"]
[Black "Shawket Bin, Osman Shaon"]
[Result "0-1"]
[ECO "C54"]
[WhiteElo "2227"]
[BlackElo "2053"]
[Annotator "TA"]
[PlyCount "62"]
[EventDate "2022.07.03"]
[EventCountry "BAN"]
[SourceTitle "playchess.com"]
[Source "ChessBase"]
[SourceQuality "1"]
[TimeControl "5400+30"]

{[%evp 14,62,8,12,17,6,12,11,25,5,8,-12,-14,-67,0,0,0,-16,0,-10,-24,-47,-13,-11,0,0,0,-41,-45,-45,-42,-47,-42,-113,-97,-97,-97,-97,-97,-91,-91,-302,-281,-314,-301,-378,-377,-400,-398,-877,-878]} 1. e4 {[%emt 0:00:15]} e5 {[%emt 0:00:12]} 2. Nf3 {[%emt 0:00:05]} Nc6 {[%emt 0:00:05]} 3. Bc4 {[%emt 0:00:16]} Bc5 {[%emt 0:00:19]} 4. O-O {[%emt 0:00:19]} Nf6 {[%emt 0:00:15]} 5. d3 {[%emt 0:00:10]} d6 {[%emt 0:00:51]} 6. c3 {[%emt 0:00:25]} O-O {[%emt 0:02:26]} 7. h3 {[%emt 0:00:03]} h6 {[%emt 0:00:10]} 8. Re1 {[%emt 0:00:03]} a6 {[%emt 0:00:35] C54: Giuoco Piano: 4 c3 Nf6, main lines with 5 d4 and 5 d3.} 9. a4 {[%emt 0:00:03]} Ba7 {[%emt 0:02:05]} 10. Nbd2 {[%emt 0:00:27][%cal Bb1d2,Bd2f1,Bf1g3][%mdl 32]} Ne7 {[%emt 0:07:54] The position is equal.} 11. d4 {[%emt 0:04:38]} Ng6 {[%emt 0:02:14]} (11... Nc6 $5 {[%cal Re5d4]}) 12. Nf1 {[%emt 0:00:26]} exd4 {[%emt 0:07:09]} 13. cxd4 {[%emt 0:02:38] [#]} (13. Nxd4 $11 Nxe4 14. Rxe4) 13... d5 {[%emt 0:00:24]} (13... Nxe4 $1 $15 14. Qb3 (14. Rxe4 d5 $17) (14. Bxf7+ Rxf7) 14... Ng5 15. Nxg5 hxg5) 14. exd5 $11 {[%emt 0:01:39]} Nxd5 {[%emt 0:00:09][%cal Bf6d5,Bd5f4,Bf4e6,Be6d4][%mdl 32]} 15. Ng3 {[%emt 0:03:50]} c6 {[%emt 0:01:49] [#]} 16. a5 $146 {[%emt 0:01:37]} ({Predecessor:} 16. Qb3 Rb8 17. a5 Be6 18. Bd2 Re8 19. Qc2 Ndf4 20. Rad1 Bxc4 21. Qxc4 Qd5 22. Qxd5 Nxd5 {0-1 (50) Sethuraman,S (2624)-Quesada Perez,Y (2582) chess24.com INT 2019}) 16... Be6 {[%emt 0:06:07]} 17. Qb3 {[%emt 0:02:41]} Qc7 {[%emt 0:07:39]} 18. Bd2 {[%emt 0:06:52]} Rad8 {[%emt 0:10:30]} 19. Re4 {[%emt 0:02:20]} Ndf4 {[%emt 0:16:38]} 20. Bxe6 {[%emt 0:01:20]} Nxe6 {[%emt 0:00:17]} 21. Bb4 {[%emt 0:06:02]} Rfe8 {[%emt 0:00:30][%cal Re6d4]} 22. Rae1 {[%emt 0:02:07]} Rd5 {[%emt 0:01:16]} 23. Ne5 {[%emt 0:12:31]} ({White should try} 23. Qc2 $15 Qd7 24. Bc3) 23... Nxd4 {[%emt 0:06:14]} 24. Nxg6 {[%emt 0:01:45]} Rxe4 {[%emt 0:00:09] The board is on fire.} (24... Nxb3 $2 25. Rxe8+ Kh7 26. Nf8+ Kh8 27. Ne6+ Kh7 28. Nxc7 $18) 25. Rxe4 {[%emt 0:00:09]} fxg6 {[%emt 0:00:27]} (25... Nxb3 $2 26. Re8+ Kh7 27. Nf8+ Kh8 28. Ne6+ Kh7 29. Nxc7 $18) 26. Qe3 {[%emt 0:08:41]} Kh7 {[%emt 0:07:31]} 27. Bc3 $2 {[%emt 0:05:19] [#] This move loses the game for White.} (27. Re7 $17 Rd7 28. Rxd7 Qxd7 29. Ne4) 27... Nb5 $19 {[%emt 0:01:04]} 28. Qf3 {[%emt 0:03:35] Against Rd1+} Nxc3 {[%emt 0:00:26]} 29. bxc3 {[%emt 0:00:04]} Rd2 {[%emt 0:01:48]} 30. Re2 {[%emt 0:02:43]} Rxe2 {[%emt 0:00:15]} 31. Qxe2 {[%emt 0:00:59]} (31. Nxe2 Qxa5 32. g3) 31... Qxg3 {[%emt 0:00:19] Weighted Error Value: White=0.55/Black=0.07 (flawless)} 0-1

[Event "2nd Late Dr Abul K C Chess-ch A 2022"]
[Site "Dhaka"]
[Date "2022.07.05"]
[Round "4.5"]
[White "Ghosh, Chanchal Kumer"]
[Black "Masum, Hossain"]
[Result "0-1"]
[ECO "C15"]
[WhiteElo "2047"]
[BlackElo "2100"]
[Annotator "TA"]
[PlyCount "63"]
[EventDate "2022.07.03"]
[EventCountry "BAN"]
[SourceTitle "playchess.com"]
[Source "ChessBase"]
[SourceQuality "1"]
[TimeControl "5400+30"]

{[%evp 9,63,64,70,71,115,107,114,99,114,104,118,113,116,116,102,100,239,25,51,59,52,52,32,-156,-144,-145,-138,-145,-148,-280,-283,-451,-450,-514,-529,-719,-702,-713,-687,-1245,-702,-1047,-1014,-2784,-2615,-2428,-2208,-6083,-1185,-2337,-1731,-29985,-29986,-29990,-29991,-29994]} 1. e4 {[%emt 0:07:08]} e6 {[%emt 0:11:38]} 2. d4 {[%emt 0:01:05]} d5 {[%emt 0:01:23]} 3. Nc3 {[%emt 0:00:24]} Bb4 {[%emt 0:00:22]} 4. Bd3 {[%emt 0:01:16]} Nf6 {[%emt 0:01:15]} 5. e5 {[%emt 0:01:57]} Nfd7 {[%emt 0:00:01]} ({Not} 5... Ne4 6. Qg4 $16) 6. Qg4 {[%emt 0:01:10] C15: French: 3 Nc3 Bb4: Unusual White 4th moves.} g6 {[%emt 0:04:30]} 7. Bg5 {[%emt 0:01:50]} Be7 {[%emt 0:00:35]} 8. Nf3 {[%emt 0:05:40] [#] White is better.} b6 $146 {[%emt 0:20:36]} ({Predecessor:} 8... a6 9. h4 h5 10. Qf4 Nc6 11. Bh6 Nb4 12. Ng5 Nxd3+ 13. cxd3 Nf6 14. Bg7 Rg8 15. Bxf6 Bxf6 16. Qxf6 Qxf6 17. exf6 {1-0 (35) Bielik,J (1644)-Puskar,D (1761) Banska Bystrica 2016}) 9. h4 {[%emt 0:03:29]} h5 {[%emt 0:00:21]} 10. Qf4 {[%emt 0:05:25]} Ba6 {[%emt 0:00:11]} 11. Nb5 {[%emt 0:01:38]} Bxb5 {[%emt 0:01:40]} 12. Bxb5 {[%emt 0:00:03]} c5 {[%emt 0:00:05] [#]} (12... a6 $16 13. Bd3 c5) 13. Bh6 $2 {[%emt 0:02:33]} (13. c4 $1 $18) 13... a6 {[%emt 0:01:57] [#]} 14. Ng5 $1 {[%emt 0:00:24]} Bxg5 {[%emt 0:00:56]} 15. Bxg5 {[%emt 0:00:03] This bishop pair is nice.} Qc7 {[%emt 0:00:49]} 16. Qf6 $2 {[%emt 0:00:19]} (16. Bxd7+ $14 {keeps the upper hand.} Nxd7 17. c3) 16... O-O $17 {[%emt 0:00:03] Black continues to play with concentration.} 17. Bxd7 {[%emt 0:13:40]} Nxd7 {[%emt 0:00:06]} 18. Qf4 {[%emt 0:13:14]} cxd4 {[%emt 0:00:07]} 19. Be7 {[%emt 0:07:40]} (19. O-O-O $17) 19... Nxe5 $19 {[%emt 0:02:44] Hoping for ...Nd3+.} 20. Qg5 {[%emt 0:03:51]} (20. O-O $142 Qxe7 21. Qxe5) 20... Rfe8 {[%emt 0:02:04]} 21. Bf6 {[%emt 0:01:46] White threatens Qh6 and mate.} Ng4 {[%emt 0:00:01] Inhibits Qh6. Threatens to win with ...Rac8.} 22. Bxd4 {[%emt 0:04:52]} e5 {[%emt 0:00:01]} 23. Bc3 {[%emt 0:00:29]} d4 {[%emt 0:00:02]} 24. Bd2 {[%emt 0:00:27]} e4 {[%emt 0:00:17] Prevents f3.} 25. Bf4 {[%emt 0:09:45]} Qc4 {[%emt 0:01:16] aiming for ...e3.} 26. Rd1 {[%emt 0:03:32]} e3 {[%emt 0:00:10]} 27. fxe3 {[%emt 0:01:04]} Nxe3 {[%emt 0:00:02] ( -> ...Ng4+)} 28. Rd2 {[%emt 0:02:56]} Nf1+ {[%emt 0:02:34]} (28... Ng4+ $142 29. Kd1 Qxa2) 29. Be5 {[%emt 0:01:06]} Nxd2 {[%emt 0:00:29]} 30. Kxd2 {[%emt 0:00:11]} Rac8 {[%emt 0:00:37]} 31. Rc1 {[%emt 0:01:54]} Rc5 {[%emt 0:00:35]} 32. Ke1 {[%emt 0:01:53] Weighted Error Value: White=1.48/Black=0.46} 0-1

[Event "2nd Late Dr Abul K C Chess-ch A 2022"]
[Site "Dhaka"]
[Date "2022.07.05"]
[Round "4.6"]
[White "Manon, Reja Neer"]
[Black "abzid, Rahman"]
[Result "1-0"]
[ECO "B44"]
[WhiteElo "2089"]
[BlackElo "2036"]
[Annotator "TA"]
[PlyCount "53"]
[EventDate "2022.07.03"]
[EventCountry "BAN"]
[SourceTitle "playchess.com"]
[Source "ChessBase"]
[SourceQuality "1"]
[TimeControl "5400+30"]

{[%evp 19,53,40,55,51,65,46,97,114,109,103,139,139,136,142,194,112,140,150,124,98,385,389,381,380,393,393,376,386,366,366,346,342,386,295,321,316]} 1. e4 {[%emt 0:00:04]} c5 {[%emt 0:00:42]} 2. Nf3 {[%emt 0:00:11][%cal Bg1f3,Bf3d4,Bd4b5][%mdl 32]} e6 {[%emt 0:00:07]} 3. d4 {[%emt 0:00:04]} cxd4 {[%emt 0:00:09]} 4. Nxd4 {[%emt 0:00:03]} Nc6 {[%emt 0:00:27]} 5. Nb5 {[%emt 0:00:04]} d6 {[%emt 0:00:56]} 6. c4 {[%emt 0:00:05]} a6 {[%emt 0:00:26]} 7. N5c3 {[%emt 0:00:10]} Qc7 {[%emt 0:02:56]} 8. Be3 {[%emt 0:02:08]} Nf6 {[%emt 0:01:26]} 9. Be2 {[%emt 0:01:03]} Be7 {[%emt 0:00:43]} 10. O-O {[%emt 0:01:59]} O-O {[%emt 1:27:38]} 11. Nd2 {[%emt 0:00:30] B44: Sicilian: Taimanov: 5 Nb5.} b6 {[%emt 0:00:00]} 12. Rc1 {[%emt 0:04:23][%cal Oc3d5]} Bb7 {[%emt 0:00:00] [#]} (12... Qb8 $14) 13. Nd5 $1 $16 {[%emt 0:05:08] White is better.} exd5 {[%emt 0:00:00]} 14. cxd5 {[%emt 0:00:02][%mdl 64] Discovered Attack} Qd7 {[%emt 0:00:00]} 15. dxc6 {[%emt 0:00:19]} Bxc6 {[%emt 0:00:00]} 16. Nc4 $1 {[%emt 0:05:52]} ({Resist} 16. Bxb6 $6 Nxe4 17. Nxe4 Bxe4 $14) 16... Bd8 {[%emt 0:00:00] [#]} (16... Qb7 $16) 17. Qxd6 $146 {[%emt 0:15:12]} ({But not} 17. Nxb6 $6 Bxb6 18. Bxb6 Nxe4 $14) (17. Nxd6 $18 Nxe4 18. Bg4 $1 Qxd6 19. Qxd6 Nxd6 20. Rxc6) ({Predecessor:} 17. f3 Bb5 18. Nxb6 Bxb6 19. Bxb6 d5 20. e5 Qe6 21. Bd4 Nd7 22. f4 Rfc8 23. Bxb5 axb5 {0-1 (50) Goessling,G-Bengfort,W Germany 1997}) 17... Bxe4 {[%emt 0:00:00] [#]} 18. Qxd7 $1 {[%emt 0:15:00] White is more active.} Nxd7 {[%emt 0:00:00]} 19. Rfd1 {[%emt 0:00:23] Against Bd5} Ra7 {[%emt 0:00:00][%mdl 8192] This move loses the game for Black.} (19... Bf5 $16 {was worth a try.}) 20. Nd6 $18 {[%emt 0:01:38]} Nf6 {[%emt 0:00:00]} 21. Nxe4 {[%emt 0:01:39]} Nxe4 {[%emt 0:00:00] [#]} 22. Rxd8 $1 {[%emt 0:00:15][%mdl 512]} Rxd8 {[%emt 0:00:00]} 23. Bxb6 {[%emt 0:00:03]} Rad7 {[%emt 0:00:00]} 24. Bxd8 {[%emt 0:00:30]} Rxd8 {[%emt 0:00:00]} 25. Bxa6 {[%emt 0:00:09]} Nd6 {[%emt 0:00:00]} 26. Bd3 {[%emt 0:02:35]} g6 {[%emt 0:00:00]} 27. Kf1 {[%emt 0:00:13] Weighted Error Value: White=0.10 (very precise) /Black=0.60} 1-0